[Event "13th Rheinland-Pfalz-Open 2023"]
[Site "Neuwied-Engers"]
[Date "2023.06.10"]
[Round "6.7"]
[White "Ollenberger, Roland"]
[Black "Boehme, Sebastian"]
[Result "1/2-1/2"]
[Annotator "TA"]
[ECO "A00"]
[WhiteElo "2280"]
[BlackElo "2163"]
[PlyCount "129"]
[EventDate "2023.01.12"]
[EventType "swiss"]
[EventCountry "GER"]
[SourceTitle "playchess.com"]
[Source "ChessBase"]
[SourceQuality "1"]
[TimeControl "40/5400+30:1800+30"]

{[%evp 10,129,-34,-25,-22,-41,-40,-38,-10,-44,-6,-98,-102,-166,-173,-173,-164,-166,-162,-184,-183,-170,-144,-139,-141,-186,-66,-56,-56,-59,-28,-45,-31,-41,-47,-76,-38,-67,-33,-45,-36,-32,-27,-135,-134,-194,-165,-165,-162,-164,-134,-162,-155,-166,-163,-152,-153,-96,-77,-112,-89,-98,0,0,0,0,0,0,0,-9,-10,-9,-9,-77,-65,-256,-211,-332,-312,-331,-315,-303,-262,-273,-161,-125,-131,-538,8,8,8,8,8,8,8,8,8,8,8,8,0,0,8,0,8,8,8,8,8,0,0,0,8,0,0,0,0,0,0,0,0,0]} 1. Nc3 {[%emt 0:00:03]} d5 {[%emt 0:00:23][%cal Bd7d5,Bd5d4][%mdl 32]} 2. e4 {[%emt 0:00:06]} d4 {[%emt 0:00:04]} 3. Nce2 {[%emt 0:00:04]} e5 {[%emt 0:00:29]} 4. Nf3 {[%emt 0:00:12]} f6 {[%emt 0:00:52]} 5. Ng3 {[%emt 0:00:05]} Be6 {[%emt 0:01:25]} 6. Bb5+ {[%emt 0:00:42]} Nc6 {[%emt 0:04:54] A00: Irregular Openings.} 7. O-O {[%emt 0:02:48]} Nge7 {[%emt 0:04:06]} 8. d3 {[%emt 0:00:22]} Qd6 {[%emt 0:03:07] [#] Black is slightly better.} (8... a6 $5 {[%cal Ra6b5]} 9. Ba4 h5 $11) 9. Nh4 $146 {[%emt 0:01:25]} ({Predecessor:} 9. Bd2 O-O-O 10. h4 h5 11. a3 a6 12. Ba4 Kb8 13. Qe2 Nc8 14. b4 Nb6 15. Bb3 Bxb3 16. cxb3 {½-½ Kokorin,V (2254)-Krakovsky,P (2248) W-ch WS/M/326 email 2011}) 9... Qd7 {[%emt 0:05:34]} 10. Bxc6 {[%emt 0:03:05]} (10. f4 $11) 10... Nxc6 $17 {[%emt 0:02:10]} 11. Ne2 {[%emt 0:02:43]} (11. Bd2 $17 {keeps fighting.}) 11... g5 $1 $19 {[%emt 0:01:50]} 12. Nf3 {[%emt 0:00:48]} O-O-O {[%emt 0:01:05]} 13. Nd2 {[%emt 0:04:12]} h5 {[%emt 0:01:10]} 14. b3 {[%emt 0:01:28]} g4 {[%emt 0:05:37]} 15. f4 {[%emt 0:02:57]} gxf3 {[%emt 0:00:45]} 16. Nxf3 {[%emt 0:00:25]} h4 {[%emt 0:02:19]} 17. Kh1 {[%emt 0:00:25]} Bh6 {[%emt 0:01:49]} (17... h3 $19 {And now ...hxg2+ would win.} 18. g3 Bg4) 18. Bxh6 $15 {[%emt 0:02:52]} Rxh6 {[%emt 0:00:32]} 19. Qd2 {[%emt 0:00:34]} Rhh8 {[%emt 0:04:57]} 20. Rf2 {[%emt 0:00:43]} Ne7 {[%emt 0:01:51]} 21. Raf1 {[%emt 0:01:00]} b6 {[%emt 0:03:56]} 22. Qe1 {[%emt 0:10:40]} Kb7 {[%emt 0:02:05]} (22... h3 $5 {[%cal Rh3g2]} 23. g3 Qc6 $15) 23. Neg1 {[%emt 0:00:39]} Rdg8 {[%emt 0:02:38]} 24. Nd2 {[%emt 0:01:55]} f5 {[%emt 0:02:19]} 25. Ngf3 {[%emt 0:02:46]} Qd6 {[%emt 0:04:48]} 26. exf5 {[%emt 0:08:53]} (26. Nxe5 $1 $11 h3 27. Nef3 (27. exf5 $2 hxg2+ 28. Rxg2 Rxg2 $19)) 26... Nxf5 $17 {[%emt 0:00:30][%cal Be7f5,Bf5g3,Bg3f1][%mdl 32]} 27. Qe4+ {[%emt 0:12:00]} ({Much weaker is} 27. Nxe5 Ng3+ 28. Kg1 Nxf1 29. Kxf1 h3 $19) (27. Ne4 $17 Qe7 28. h3 (28. Nxe5 Ng3+ 29. Kg1 Nxf1 $17)) 27... Kb8 {[%emt 0:01:44][%cal Of5g3]} 28. Qxe5 {[%emt 0:06:50] [#]} Ng3+ $1 {[%emt 0:01:41][%mdl 576] Double Attack} 29. Kg1 {[%emt 0:03:45]} Qxe5 {[%emt 0:01:15]} ({And not} 29... Nxf1 30. Qxd6 cxd6 31. Kxf1 $15) 30. Nxe5 {[%emt 0:00:15]} Nxf1 {[%emt 0:00:10]} 31. Kxf1 {[%emt 0:00:48]} h3 {[%emt 0:10:00]} 32. g3 {[%emt 0:08:23]} Bd5 {[%emt 0:01:10][%cal Og8g3] Prevents Nc6+} 33. Ndf3 {[%emt 0:03:40]} ({White should play} 33. Nef3) 33... c5 {[%emt 0:01:01] aiming for ...Kc7.} 34. Nh4 {[%emt 0:01:01]} Kb7 {[%emt 0:06:54]} 35. Neg6 {[%emt 0:02:04]} Rh7 {[%emt 0:01:40]} (35... Rh6 $17 36. Ne7 Rg5 37. Nxd5 Rxd5 38. Rf7+ Kb8) 36. Nf4 $11 {[%emt 0:00:18][%csl LRd5,LRh3]} Bc6 {[%emt 0:00:50]} 37. Nxh3 {[%emt 0:00:30]} Re8 {[%emt 0:01:23]} 38. Nf4 {[%emt 0:01:13]} Rhe7 {[%emt 0:00:16][%csl Ge8][%cal Re7e1]} 39. Re2 {[%emt 0:00:24] Dodges Re1+} Rxe2 {[%emt 0:03:31]} 40. Nxe2 {[%emt 0:00:35][%mdl 4096] Endgame KRB-KNN} Bd7 {[%emt 0:00:38]} 41. Nf4 {[%emt 0:32:48] [#]} (41. Kf2 $11 {remains equal.}) 41... Bg4 $1 $17 {[%emt 0:31:37]} 42. Nhg6 $2 {[%emt 0:07:12]} (42. Kf2 $15) 42... Bd1 $19 {[%emt 0:08:52]} 43. h4 {[%emt 0:00:39]} (43. Nh4 $142) 43... Bxc2 {[%emt 0:01:09] ...b5 would be deadly.} 44. h5 {[%emt 0:00:45]} b5 {[%emt 0:01:38][%cal Oc5c4]} 45. Nh4 {[%emt 0:00:00]} a5 {[%emt 0:00:00]} 46. Nf5 {[%emt 0:00:00] Strongly threatening Nd6+.} Rf8 {[%emt 0:00:00]} (46... Kc6 $142 {...b4 is the strong threat.} 47. g4 b4) 47. g4 {[%emt 0:00:00] [#]} Bd1 {[%emt 0:00:00]} 48. Ng6 $2 {[%emt 0:00:00][%mdl 8192] Dodges Bxg4} (48. Ne6 $17 Rh8 49. g5 (49. Nxc5+ $2 {perishes.} Kc6 $19)) 48... Bxg4 $2 {[%emt 0:03:36]} (48... Rf6 $19 49. h6 Bxg4) 49. Nxf8 $11 {[%emt 0:00:00] The position is equal.} Bxf5 $19 {[%emt 0:00:01] KB-KN} 50. h6 {[%emt 0:00:00] Black must now prevent Ke2.} Bxd3+ {[%emt 0:00:06]} 51. Ke1 {[%emt 0:00:00]} Kc6 {[%emt 0:00:42]} 52. Kd2 {[%emt 0:00:00]} Bf5 {[%emt 0:01:58]} 53. h7 {[%emt 0:02:18]} Bxh7 {[%emt 0:00:01]} 54. Nxh7 $11 {[%emt 0:00:09] KN-KP} c4 {[%emt 0:00:19]} 55. Ng5 {[%emt 0:01:07]} Kc5 {[%emt 0:01:54]} 56. Ne6+ {[%emt 0:04:32]} Kb4 {[%emt 0:00:22]} 57. Nxd4 {[%emt 0:00:29]} cxb3 {[%emt 0:00:07]} 58. Nxb3 {[%emt 0:00:24] KN-KPP} Ka3 {[%emt 0:00:27]} 59. Nc1 {[%emt 0:00:39]} Kb2 {[%emt 0:00:15]} 60. Kd1 {[%emt 0:00:44]} a4 {[%emt 0:00:19]} 61. Kd2 {[%emt 0:00:22]} b4 {[%emt 0:00:52]} 62. Nd3+ {[%emt 0:01:42]} Kxa2 {[%emt 0:00:21]} 63. Nxb4+ {[%emt 0:00:09]} Kb3 {[%emt 0:00:05]} 64. Nc2 {[%emt 0:00:12]} a3 {[%emt 0:00:04]} 65. Nxa3 {[%emt 0:00:12] Whites escaped into a draw.   Weighted Error Value: White=0.34/Black=0.23 (precise)} 1/2-1/2

[Event "13th Rheinland-Pfalz-Open 2023"]
[Site "Neuwied-Engers"]
[Date "2023.06.10"]
[Round "6.8"]
[White "Ronge, Tim"]
[Black "Barthel, Ansgar"]
[Result "1-0"]
[Annotator "TA"]
[ECO "B04"]
[WhiteElo "2266"]
[BlackElo "2081"]
[PlyCount "55"]
[EventDate "2023.01.12"]
[EventType "swiss"]
[EventCountry "GER"]
[SourceTitle "playchess.com"]
[Source "ChessBase"]
[SourceQuality "1"]
[TimeControl "40/5400+30:1800+30"]

{[%evp 19,55,21,26,39,33,37,12,6,68,83,65,37,279,279,359,355,420,423,433,413,434,434,420,234,308,310,386,339,319,270,687,673,642,625,1307,1299,29979,29968]} 1. e4 {[%emt 0:00:03][%cal Be2e4,Be4e5][%mdl 32]} Nf6 {[%emt 0:00:06][%cal Bg8f6,Bf6d5,Bd5b6][%mdl 32]} 2. e5 {[%emt 0:00:20]} Nd5 {[%emt 0:00:07]} 3. d4 {[%emt 0:00:06]} d6 {[%emt 0:00:04]} 4. c4 {[%emt 0:00:04]} Nb6 {[%emt 0:00:05]} 5. exd6 {[%emt 0:00:05]} cxd6 {[%emt 0:00:05]} 6. Nf3 {[%emt 0:00:05]} g6 {[%emt 0:00:06]} 7. h3 {[%emt 0:00:10]} Bg7 {[%emt 0:00:06]} 8. Be2 {[%emt 0:00:09]} O-O {[%emt 0:00:08]} 9. Nc3 {[%emt 0:00:13]} Nc6 {[%emt 0:01:58][%cal Bb8c6,Bc6a5,Ba5c4][%mdl 32]} 10. O-O {[%emt 0:01:36]} Bf5 {[%emt 0:00:35]} 11. d5 {[%emt 0:01:56] B04: Alekhine's Defence: 4 Nf3.} Na5 {[%emt 0:03:29]} 12. Nd4 $1 {[%emt 0:00:17]} ({Reject} 12. g4 Bd7 13. Qd3 Naxc4 $17) 12... Naxc4 {[%emt 0:01:36]} 13. a4 {[%emt 0:03:28][%cal Ba2a4,Ba4a5][%mdl 32] The position is equal.} Rc8 {[%emt 0:04:42]} ({Better is} 13... Na5 $11) 14. a5 {[%emt 0:01:11]} Na8 {[%emt 0:00:35] [#]} 15. a6 $146 {[%emt 0:00:24]} ({Predecessor:} 15. Ra4 Ne5 16. f4 Nd7 17. g4 Nc5 18. gxf5 Nxa4 19. Qxa4 Rc5 20. Nb3 Rc8 21. fxg6 hxg6 {1-0 Cornette,M (2578)-Vogel,C (2149) EU-Cup 36th Struga 2021 (1.19)}) 15... Qb6 {[%emt 0:07:38] Black cannot hold the game after this.} ({Black should try} 15... bxa6 $14 16. Nc6 (16. Rxa6 Bd7 $11) 16... Rxc6 17. dxc6 Ne5) 16. axb7 $18 {[%emt 0:09:29]} Qxb7 {[%emt 0:00:21]} 17. Nc6 {[%emt 0:02:37]} Rxc6 {[%emt 0:10:13]} 18. dxc6 {[%emt 0:00:06]} Qxc6 {[%emt 0:00:06] [#]} 19. Nd5 {[%emt 0:00:55]} ({Not} 19. Rxa7 Nab6 $16) 19... Re8 {[%emt 0:03:49]} 20. Rxa7 {[%emt 0:01:06]} Kf8 {[%emt 0:00:11]} 21. Bf3 {[%emt 0:02:15]} (21. Bxc4 $142 Qxc4 22. Nxe7) 21... Ne5 {[%emt 0:00:38]} 22. Bg5 {[%emt 0:04:03][%cal Rg5e7]} f6 {[%emt 0:05:38]} 23. Bf4 {[%emt 0:06:02][%cal Od5e7] And now Nxe7! would win.} Nxf3+ {[%emt 0:06:54]} 24. Qxf3 {[%emt 0:03:04]} Be6 $2 {[%emt 0:24:30] [#]} (24... Nb6) 25. Nxe7 $1 {[%emt 0:03:13][%mdl 576] Discovered Attack} Qxf3 {[%emt 0:00:13]} 26. gxf3 {[%emt 0:00:03]} Bxh3 {[%emt 0:02:39]} 27. Re1 {[%emt 0:00:21]} Rd8 {[%emt 0:01:15]} 28. Nc6 {[%emt 0:00:06][%mdl 64] Deflection.   Weighted Error Value: White=0.24 (precise) /Black=0.97} 1-0

[Event "13th Rheinland-Pfalz-Open 2023"]
[Site "Neuwied-Engers"]
[Date "2023.06.10"]
[Round "6.9"]
[White "Perske, Paul"]
[Black "Commercon, Simon"]
[Result "1/2-1/2"]
[Annotator "TA"]
[ECO "C06"]
[WhiteElo "2092"]
[BlackElo "2189"]
[PlyCount "156"]
[EventDate "2023.01.12"]
[EventType "swiss"]
[EventCountry "GER"]
[SourceTitle "playchess.com"]
[Source "ChessBase"]
[SourceQuality "1"]
[TimeControl "40/5400+30:1800+30"]

{[%evp 13,156,40,54,50,66,63,67,63,53,33,68,78,129,82,131,143,131,121,146,17,31,30,167,33,11,-19,-21,0,-4,-28,0,-41,-22,-23,-24,-38,-44,-68,-78,-80,0,0,0,0,0,0,0,0,0,0,0,0,0,0,0,0,0,0,0,0,0,0,0,0,0,0,4,4,4,0,0,-75,-10,-10,-10,-60,-60,-60,-60,-60,-60,-75,-75,-75,-75,-75,-75,-75,-75,-75,-75,-75,-75,-75,-75,-75,-70,-70,-41,-41,-41,-41,-41,-41,-41,-41,-41,-60,0,-60,0,-60,-60,-60,-60,-60,0,-60,-60,-60,-60,-66,0,0,0,0,0,-2,0,0,0,0,0,-41,-40,-41,-41,-41,-40,-41,0,0,0,0,0]} 1. e4 {[%emt 0:00:05]} e6 {[%emt 0:00:48]} 2. d4 {[%emt 0:00:06]} d5 {[%emt 0:00:04]} 3. Nd2 {[%emt 0:00:08]} Nf6 {[%emt 0:00:32]} 4. e5 {[%emt 0:00:05]} Nfd7 {[%emt 0:00:04]} 5. c3 {[%emt 0:00:10]} c5 {[%emt 0:00:18]} 6. Bd3 {[%emt 0:00:09]} Nc6 {[%emt 0:11:23]} 7. Ne2 {[%emt 0:00:25]} a6 {[%emt 0:05:43]} 8. O-O {[%emt 0:01:51] C06: French Tarrasch: 3...Nf6 4 e5 Nfd7 5 Bd3 main lines.} b5 {[%emt 0:00:59]} 9. Nf3 {[%emt 0:01:11]} Be7 {[%emt 0:00:48]} 10. Re1 {[%emt 0:00:35] White is slightly better.} Bb7 {[%emt 0:01:49] [#]} 11. Be3 $146 {[%emt 0:01:05]} ({Predecessor:} 11. Nf4 g6 12. Be3 c4 13. Bc2 Qc7 14. b3 Na5 15. b4 Nc6 16. a4 O-O-O 17. axb5 axb5 {1-0 Szucs,Z (1663)-Toth,B (1300) Budapest Art Pub Cup 3rd 2014 (5)}) 11... h6 {[%emt 0:08:45]} 12. Nf4 {[%emt 0:12:59]} Qb6 {[%emt 0:02:55]} (12... c4 $142) 13. Nh5 {[%emt 0:09:42]} (13. dxc5 $142 Bxc5 14. Bxc5 Nxc5 15. Bc2) 13... g6 {[%emt 0:00:33]} (13... Kf8 $142) 14. dxc5 $16 {[%emt 0:01:52] White is more active.} Bxc5 {[%emt 0:00:33]} 15. Nf6+ {[%emt 0:00:38]} Nxf6 {[%emt 0:00:32]} 16. exf6 {[%emt 0:00:24]} ({White must play} 16. Bxc5 $16 Qxc5 17. exf6) 16... Bxe3 $11 {[%emt 0:01:23]} 17. Rxe3 {[%emt 0:00:11][%cal Od3g6] [#] And now Bxg6! would win.} O-O-O {[%emt 0:02:58]} (17... Qd8 $1 $11) 18. Qe2 {[%emt 0:05:07]} (18. a4 $18) 18... d4 $14 {[%emt 0:00:24]} 19. cxd4 {[%emt 0:01:45]} Nxd4 {[%emt 0:00:34]} 20. Nxd4 {[%emt 0:00:08]} Rxd4 {[%emt 0:00:40]} 21. Be4 {[%emt 0:02:48]} (21. Rc1+ {is more complex.} Kd7 22. b3 Rc8 23. Re1) 21... Rhd8 {[%emt 0:01:29]} 22. Rc1+ {[%emt 0:03:48]} Kb8 {[%emt 0:01:10]} 23. Bxb7 {[%emt 0:00:27]} Qxb7 {[%emt 0:00:39]} 24. Rec3 {[%emt 0:01:42]} Qd5 {[%emt 0:03:17] Inhibits Qe5+.} 25. h3 {[%emt 0:13:02]} Rd1+ {[%emt 0:05:33]} 26. Kh2 {[%emt 0:00:14][%cal Oc3c8]} Qd6+ {[%emt 0:01:29]} (26... Rxc1 $17 27. Rxc1 Qd2) 27. g3 $11 {[%emt 0:00:30]} Rd2 {[%emt 0:01:37]} 28. Qe1 {[%emt 0:10:33]} Qd4 {[%emt 0:00:52]} 29. R3c2 {[%emt 0:01:13]} Rd7 {[%emt 0:09:42]} 30. b3 {[%emt 0:07:47]} Rxc2 {[%emt 0:04:28]} 31. Rxc2 {[%emt 0:00:05][%mdl 4096] Endgame KQR-KQR} Kb7 {[%emt 0:05:56]} 32. Qh1+ {[%emt 0:01:44]} Qd5 {[%emt 0:00:23]} 33. Qc1 {[%emt 0:00:27]} Qf3 {[%emt 0:02:57]} 34. Rd2 {[%emt 0:01:45]} Rc7 {[%emt 0:06:38]} 35. Qe1 {[%emt 0:01:57]} h5 {[%emt 0:01:51]} 36. h4 {[%emt 0:04:04]} Kc8 {[%emt 0:07:38]} 37. Rd6 {[%emt 0:04:46]} Rc2 {[%emt 0:05:28]} (37... Qxf6 38. Qe3 $14) 38. Kg1 {[%emt 0:00:22]} a5 {[%emt 0:02:15]} (38... Rxa2 39. Qc1+) (38... Qxf6 39. Qe3 Qc3 40. Qe4 $16 (40. Rxa6 Qxe3 41. fxe3 Kb7 $17)) 39. a3 {[%emt 0:06:39]} Rc3 {[%emt 0:04:02]} 40. Qd2 {[%emt 0:01:57]} Qxf6 {[%emt 0:00:19]} 41. Ra6 {[%emt 0:33:55]} Qf3 {[%emt 0:04:01] Prevents Ra8+. Hoping for ...Rd3.} (41... Rxb3 42. Rc6+ (42. Qxa5 Rxg3+ 43. fxg3 Qd4+ 44. Kh1 Qe4+ 45. Kh2 Qc2+ 46. Kh3 Qf5+ 47. Kh2 Qf2+ 48. Kh3 Qf1+ 49. Kh2 Qf2+ 50. Kh3 Qf1+ 51. Kh2 Qf2+ $11) 42... Kb8 43. Qd6+ (43. Qxa5 Rxg3+ 44. fxg3 Qd4+ 45. Kf1 Qd3+ 46. Kf2 Qd4+ 47. Kf1 Qd3+ 48. Kf2 Qd4+ 49. Kf1 $11) 43... Ka8 44. Ra6+ Kb7 45. Qc6+ Kb8 46. Ra8#) (41... Kb7 $2 42. Qd6 (42. Rxa5 Kc8 $16) 42... Rc7 43. Rb6+ (43. Rxa5 Rc1+ 44. Kg2 Qf5 $16) 43... Kc8 44. Qf8+ (44. Rxb5 Qf3 $11) 44... Qd8 45. Rb8+ Kxb8 46. Qxd8+ $18) 42. Ra8+ {[%emt 0:00:00] [#]} Qxa8 {[%emt 0:01:57]} (42... Kb7 $1 $17 43. Rd8 (43. Rxa5 $2 {is the wrong capture.} Rd3 $19) 43... Qc6 44. Rd7+ Ka6) 43. Qxc3+ $17 {[%emt 0:00:00] KQ-KQ} Kd7 {[%emt 0:00:08]} 44. Qd4+ {[%emt 0:00:00]} (44. Qf6 $1 $11) 44... Qd5 $15 {[%emt 0:01:32]} 45. Qa7+ {[%emt 0:00:00]} Ke8 {[%emt 0:00:36]} 46. Qb8+ {[%emt 0:00:00]} Ke7 {[%emt 0:00:10]} 47. Qa7+ {[%emt 0:00:00]} Kf6 {[%emt 0:00:44]} 48. Qxa5 {[%emt 0:00:00]} Qxb3 {[%emt 0:00:09]} 49. Qd8+ {[%emt 0:00:00]} Kg7 {[%emt 0:00:17]} 50. Qd4+ {[%emt 0:00:00]} Kh7 {[%emt 0:00:27]} 51. Qf6 {[%emt 0:00:00]} Qd1+ {[%emt 0:00:04]} ({Much weaker is} 51... Qxa3 52. Qxf7+ Kh6 53. Qf6 $11) 52. Kh2 {[%emt 0:00:00]} Qd7 {[%emt 0:00:04]} 53. Qb2 {[%emt 0:00:00]} Kg8 {[%emt 0:27:23]} 54. Qb4 {[%emt 0:00:00]} e5 {[%emt 0:00:00]} 55. Kg1 {[%emt 0:00:00]} Qd5 {[%emt 0:00:00]} 56. Qe7 {[%emt 0:00:00]} Kg7 {[%emt 0:00:00]} 57. Kf1 {[%emt 0:00:00]} e4 {[%emt 0:00:00]} 58. Kg1 {[%emt 0:00:00]} Qd1+ {[%emt 0:00:00]} 59. Kg2 {[%emt 0:00:00]} Qf3+ {[%emt 0:00:00]} 60. Kf1 {[%emt 0:00:25]} Qf5 {[%emt 0:00:00] Inhibits Qe5+.} (60... Qd3+ $15 61. Kg2 Qf3+ 62. Kg1 Qd1+ 63. Kg2 Qe2) 61. Ke2 {[%emt 0:00:32]} ({Better is} 61. Qe8 $1 $11) 61... Kg8 {[%emt 0:00:00]} 62. Qe8+ {[%emt 0:00:20]} Kh7 $1 {[%emt 0:00:00]} 63. Qe7 {[%emt 0:00:15]} Qd5 {[%emt 0:00:00]} 64. Kf1 {[%emt 0:00:18]} Kg7 {[%emt 0:00:00]} 65. Kg1 {[%emt 0:00:10]} Qe6 {[%emt 0:00:00]} 66. Qc5 {[%emt 0:01:08]} Qe8 {[%emt 0:00:00]} 67. Kf1 {[%emt 0:00:31]} f6 {[%emt 0:00:00]} (67... Kg8 $1 $15) 68. Ke2 $11 {[%emt 0:00:27]} Kh6 {[%emt 0:00:00]} 69. Qd6 {[%emt 0:00:45]} Kg7 {[%emt 0:00:00]} 70. Qc5 {[%emt 0:00:18]} f5 {[%emt 0:00:00]} 71. Qd4+ {[%emt 0:01:33]} Kf7 {[%emt 0:00:00]} 72. Qd5+ {[%emt 0:00:49]} Kf6 {[%emt 0:00:40]} 73. Ke3 {[%emt 0:03:13]} Qe5 {[%emt 0:00:58]} 74. Qd8+ {[%emt 0:00:20]} Kg7 {[%emt 0:00:48]} 75. Qd7+ {[%emt 0:00:53]} Kh6 {[%emt 0:01:24] ...Qc3+ would be deadly.} 76. Qd8 {[%emt 0:01:36]} Qc5+ {[%emt 0:02:06]} 77. Ke2 $1 {[%emt 0:00:12][%cal Rd8h8]} Qc4+ {[%emt 0:00:18]} (77... Qxa3 $2 78. Qh8#) 78. Ke1 {[%emt 0:00:25][%cal Rd8h8]} Qc1+ {[%emt 0:02:24] Weighted Error Value: White=0.16 (very precise) /Black=0.15 (very precise)} 1/2-1/2

[Event "13th Rheinland-Pfalz-Open 2023"]
[Site "Neuwied-Engers"]
[Date "2023.06.10"]
[Round "6.10"]
[White "Boos, Patrick"]
[Black "Puth, Dieter"]
[Result "1/2-1/2"]
[Annotator "TA"]
[ECO "C69"]
[WhiteElo "2048"]
[BlackElo "2171"]
[PlyCount "73"]
[EventDate "2023.01.12"]
[EventType "swiss"]
[EventCountry "GER"]
[SourceTitle "playchess.com"]
[Source "ChessBase"]
[SourceQuality "1"]
[TimeControl "40/5400+30:1800+30"]

{[%evp 22,73,8,0,8,13,4,-41,40,40,39,30,29,28,28,16,29,27,25,25,20,17,16,16,16,16,21,22,30,17,25,19,33,12,29,18,21,22,32,0,10,0,0,0,0,0,0,0,0,0,0,0,0,-5]} 1. e4 {[%emt 0:00:30]} e5 {[%emt 0:00:29]} 2. Nf3 {[%emt 0:00:04]} Nc6 {[%emt 0:00:20]} 3. Bb5 {[%emt 0:00:21]} a6 {[%emt 0:00:25]} 4. Bxc6 {[%emt 0:00:09]} dxc6 {[%emt 0:00:12]} 5. O-O {[%emt 0:00:07]} f6 {[%emt 0:02:56]} 6. d4 {[%emt 0:02:03]} exd4 {[%emt 0:03:30]} 7. Nxd4 {[%emt 0:00:22]} c5 {[%emt 0:06:30]} 8. Nb3 {[%emt 0:00:45]} Qxd1 {[%emt 0:00:45]} 9. Rxd1 {[%emt 0:00:01]} Bg4 {[%emt 0:02:50]} 10. f3 {[%emt 0:00:14]} Bd7 {[%emt 0:00:06]} 11. Be3 {[%emt 0:01:02]} b6 {[%emt 0:01:31]} 12. Nc3 {[%emt 0:01:33]} O-O-O {[%emt 0:10:52] C69: Ruy Lopez: Exchange Variation with 5 0-0 f6.} 13. a4 {[%emt 0:08:52] a5 is the strong threat.} a5 {[%emt 0:06:25]} 14. Rd2 {[%emt 0:09:59]} Bc6 {[%emt 0:31:47]} (14... Ne7 $15) 15. Rxd8+ $14 {[%emt 0:03:57]} Kxd8 {[%emt 0:01:45]} 16. Rd1+ {[%emt 0:00:02]} Kc8 {[%emt 0:01:13]} 17. Nd2 {[%emt 0:02:39]} Ne7 {[%emt 0:03:09]} 18. Nc4 {[%emt 0:00:34]} Ng6 {[%emt 0:02:15] [#]} 19. b3 $146 {[%emt 0:01:18]} ({Predecessor:} 19. Kf2 Be7 20. Nd5 Bd8 21. b3 Re8 22. Bc1 Ne5 23. Nxe5 Rxe5 24. c4 Bd7 25. g4 c6 26. Ne3 {1-0 Sanchez Romero,M (2259)-Also Alvarado,L (2164) ESP-chT2 Gr2 2010 (4)}) 19... Be7 {[%emt 0:01:16]} 20. Nd5 {[%emt 0:01:25]} Rd8 {[%emt 0:02:28]} 21. Nxe7+ {[%emt 0:01:09]} Nxe7 {[%emt 0:00:10]} 22. Rxd8+ {[%emt 0:00:21]} Kxd8 $11 {[%emt 0:00:10][%mdl 4096] Endgame KBN-KBN} 23. Kf2 {[%emt 0:01:51]} Kd7 {[%emt 0:02:04]} 24. Bd2 {[%emt 0:06:14]} Bb7 {[%emt 0:01:27]} 25. Bc3 {[%emt 0:01:27]} Ke6 {[%emt 0:05:12]} 26. Ke3 {[%emt 0:05:06]} Bc6 {[%emt 0:02:15]} 27. g3 {[%emt 0:01:01]} g6 {[%emt 0:01:09]} 28. h4 {[%emt 0:07:04]} Bb7 {[%emt 0:02:26]} 29. g4 {[%emt 0:03:18]} h5 {[%emt 0:03:14]} 30. Kf4 {[%emt 0:04:29]} hxg4 {[%emt 0:01:47] The position is equal.} 31. fxg4 {[%emt 0:02:26]} g5+ {[%emt 0:00:18]} 32. hxg5 {[%emt 0:00:36]} fxg5+ {[%emt 0:00:15]} 33. Kf3 {[%emt 0:02:40]} Nc6 {[%emt 0:00:22] Strongly threatening ...Nd4+.} 34. Ke3 {[%emt 0:01:52] Wards off Nd4} Nb4 {[%emt 0:02:42]} 35. Na3 {[%emt 0:03:50]} Ba6 {[%emt 0:00:27]} 36. Be1 {[%emt 0:00:38]} Nc6 {[%emt 0:00:34]} 37. Bg3 {[%emt 0:02:29] Weighted Error Value: White=0.07 (flawless) /Black=0.10 (very precise)} 1/2-1/2